Workbook

Sheet 1 неделя
B4: с 9 по 13 октября, с 23 по 27 октября (Казань)
B5: Школа | C5: МБОУ "Тюнтерская СОШ" | F5: Отд./корп | G5: 1-4кл | J5: День
B7: Прием пищи | C7: Раздел | D7: № рец. | E7: Блюдо | F7: Выход, г | G7: Цена, руб | H7: Калорийность, ккал | I7: Белки,г | J7: Жиры,г | K7: Углеводы,г
B8: завтрак | C8: гор.блюдо | D8: Акт 2021 г | E8: Грудка куриная в томатном соусе | F8: 90 | H8: 113 | I8: 10.45 | J8: 6.50 | K8: 3.27 | L8: 1 неделя
C9: гор.блюдо | D9: №304/2015 | E9: Рис отварной | F9: 140 | H9: 209 | I9: 3.57 | J9: 5.07 | K9: 37.35
C10: гор.напиток | D10: ТТК 2022 г | E10: Напиток из замороженной черной смородины | F10: 200 | H10: 44 | I10: 0.10 | J10: 0.04 | K10: 10.71
C11: закуска | D11: ТТК 2023 г | E11: Салат - бар (морковь свежая порциями, капуста белокач. свежая порциями, кукуруза конс., сухарики, масло раст.) | F11: 60 | H11: 94 | I11: 1.56 | J11: 6.16 | K11: 7.78
C12: хлеб | D12: ТТК | E12: Хлебная корзина (хлеб пшен./хлеб ржано-пшен.) | F12: 40 | H12: 91 | I12: 2.52 | J12: 0.36 | K12: 18.84
B13: ИТОГО | F13: =SUM(F8:F12) -> 530 | H13: =SUM(H8:H12) -> 551 | I13: =SUM(I8:I12) -> 18.2 | J13: 18.13 | K13: =SUM(K8:K12) -> 77.95
B14: завтрак | C14: гор.блюдо | D14: ТТК 2023 г | E14: Жаркое по-домашнему | F14: 160 | H14: 189 | I14: 8.64 | J14: 7.50 | K14: 21.63
B15: вторник | C15: гор.напиток | D15: №379/2015 | E15: Кафейный напиток с молоком | F15: 200 | H15: 120 | I15: 3.30 | J15: 1.51 | K15: 21.80
C16: закуска | D16: ТТК 2023 г | E16: Салат - бар ( свекла отварная (тёртая), морковь свежая порциями, сыр, сухарики, масло раст.) | F16: 60 | H16: 125 | I16: 3.86 | J16: 8.74 | K16: 7.46
C17: хлеб | D17: ТТК | E17: Хлебная корзина (хлеб пшен./хлеб ржано-пшен.) | F17: 40 | H17: 91 | I17: 2.25 | J17: 0.36 | K17: 18.84
C18: фрукт | D18: №532/2013 г | E18: Плоды свежие (яблоки) | F18: 50 | H18: 24 | I18: 0.2 | J18: 0.2 | K18: 4.9
B19: ИТОГО | F19: =SUM(F14:F18) -> 510 | H19: =SUM(H14:H18) -> 549 | I19: 18.25 | J19: 18.31 | K19: 74.63
B20: завтрак | C20: гор.блюдо | D20: №243/2015 г | E20: Сосиски отварные | F20: 100 | H20: 125 | I20: 8.60 | J20: 4.80 | K20: 11.75
C21: гор.блюдо | D21: ТТК 2019 г | E21: Макароны отварные с сыром | F21: 140 | H21: 201 | I21: 5.39 | J21: 6.65 | K21: 29.98
C22: гор.напиток | D22: ТТК2021г | E22: Чай с сахаром | F22: 208 | H22: 47 | I22: 0.1 | J22: 0.16 | K22: 9.84
C23: закуска | D23: ТТК 2023 г | E23: Салат - бар (помидоры свежие порциями, капуста белокочанная свежая порциями, зеленый горошек консервир. сухарики, масло раст.) | F23: 60 | H23: 89 | I23: 1.55 | J23: 6.12 | K23: 6.63
C24: хлеб | D24: ТТК | E24: Хлебная корзина (хлеб пшен./хлеб ржано-пшен.) | F24: 40 | H24: 91 | I24: 2.52 | J24: 0.36 | K24: 18.84
B25: ИТОГО | F25: =SUM(F20:F24) -> 548 | H25: =SUM(H20:H24) -> 553 | I25: =SUM(I20:I24) -> 18.16 | J25: =SUM(J20:J24) -> 18.09 | K25: =SUM(K20:K24) -> 77.04
B26: завтрак | C26: гор.блюдо | D26: ТТК 2023 г | E26: Плов с куриными грудками | F26: 160 | H26: 297 | I26: 13.14 | J26: 12 | K26: 34
C27: напиток | D27: ТТК 2022 г | E27: Чай с сахаром, лимоном | F27: 215 | H27: 35 | I27: 0.07 | J27: 0.01 | K27: 8.21
C28: хлеб | D28: ТТК | E28: Хлебная корзина (хлеб пшен./хлеб ржано-пшен.) | F28: 40 | H28: 91 | I28: 2.52 | J28: 0.36 | K28: 18.84
C29: закуска | D29: ТТК 2023 г | E29: Салат - бар (помидоры свежие порц., ,огурцы свежая порц., кукуруза конс., сухарики, масло раст.) | F29: 60 | H29: 88 | I29: 1.3 | J29: 6.19 | K29: 6.6
C30: фрукт | D30: №532/2013 г | E30: Плоды свежие (яблоки) | F30: 50 | H30: 24 | I30: 0.2 | J30: 0.2 | K30: 4.9
B31: ИТОГО | F31: =SUM(F26:F30) -> 525 | H31: =SUM(H26:H30) -> 535 | I31: =SUM(I26:I30) -> 17.23 | J31: =SUM(J26:J30) -> 18.76 | K31: =SUM(K26:K30) -> 72.55
B32: завтрак | C32: гор.блюдо | D32: ТТК 2021 г | E32: Биточки рыбные из фарша минтая | F32: 90 | H32: 98 | I32: 9.8 | J32: 2.01 | K32: 10.2
C33: гор.блюдо | D33: №312/2015 г | E33: Пюре картофельное с маслом сливочным | F33: 145 | H33: 169 | I33: 3.1 | J33: 7.97 | K33: 20.6
C34: гор.напиток | D34: ТТК 2021 г | E34: Чай с сахаром, лимоном | F34: 215 | H34: 35 | I34: 0.07 | J34: 0.01 | K34: 8.21
C35: хлеб | D35: ТТК | E35: Хлебная корзина (хлеб пшен./хлеб ржано-пшен.) | F35: 40 | H35: 91 | I35: 2.52 | J35: 0.36 | K35: 18.84
C36: закуска | D36: ТТК 2023 г | E36: Салат - бар (помидоры свежие порциями, огурцы свежие порциями, фасоль консервир., сухарики, масло раст.) | F36: 60 | H36: 90 | I36: 1.62 | J36: 6.1 | K36: 6.92
B37: ИТОГО | F37: =SUM(F32:F36) -> 550 | H37: =SUM(H32:H36) -> 483 | I37: =SUM(I32:I36) -> 17.11 | J37: =SUM(J32:J36) -> 16.45 | K37: =SUM(K32:K36) -> 64.77
B38: завтрак | C38: гор.блюдо | D38: ТТК 2020 г | E38: Пельмени "Для умников и умниц" отварные переменка | F38: 150 | H38: 301 | I38: 14 | J38: 8.5 | K38: 42
C39: гор. Напиток | D39: ТТК 2021 г | E39: Чай с сахаром, лимоном | F39: 215 | H39: 35 | I39: 0.07 | J39: 0.01 | K39: 8.21
C40: хлеб | D40: ТТК | E40: Хлебная корзина (хлеб пшен./хлеб ржано-пшен.) | F40: 20 | H40: 47 | I40: 1.52 | J40: 0.16 | K40: 9.84
C41: закуска | D41: ТТК 2023 г | E41: Салат - бар (помидоры свежие порц., огурцы свежие порц., масло раст.) | F41: 60 | H41: 99 | I41: 0.45 | J41: 10.06 | K41: 1.42
C42: фрукт | D42: №532/2013 г | E42: Плоды свежие (яблоки) | F42: 90 | H42: 42 | I42: 0.36 | J42: 0.36 | K42: 8.82
B43: ИТОГО | F43: =SUM(F38:F42) -> 535 | H43: =SUM(H38:H42) -> 524.00 | I43: =SUM(I38:I42) -> 16.40 | J43: 19.09 | K43: 70.29

Sheet 2 неделя
A2: со 2 по 6 октября, с 16 по 20 октября, с 30 октября по 3 ноября (Казань)
A3: Школа | B3: МБОУ "Тюнтерская СОШ" | E3: Отд./корп | F3: 1-4кл | I3: День
A5: Прием пищи | B5: Раздел | C5: № рец. | D5: Блюдо | E5: Выход, г | F5: Цена, руб | G5: Калорийность, ккал | H5: Белки,г | I5: Жиры,г | J5: Углеводы,г
A6: завтрак | B6: гор.блюдо | C6: ТТК 2023 г | D6: Котлеты Столичные | E6: 90 | G6: 83 | H6: 8.10 | I6: 4.05 | J6: 3.40
B7: гор.блюдо | C7: ТТК 2019 г | D7: Макароны отварные с сыром | E7: 140 | G7: 201 | H7: 5.39 | I7: 6.65 | J7: 29.98
B8: гор.напиток | C8: ТТК 2022 г | D8: Чай с сахаром, лимоном | E8: 215 | G8: 35 | H8: 0.07 | I8: 0.01 | J8: 8.21 | K8: 2 неделя
B9: закуска | C9: ТТК 2023 г | D9: Салат - бар (морковь свежая порциями, капуста белокочанная свежая порциями, сыр, сухарики, масло раст.) | E9: 60 | G9: 122 | H9: 3.91 | I9: 8.74 | J9: 6.6
B10: хлеб | C10: ТТК | D10: Хлебная корзина (хлеб пшен./хлеб ржано-пшен.) | E10: 40 | G10: 91 | H10: 2.52 | I10: 0.36 | J10: 18.84
A11: ИТОГО | E11: =SUM(E6:E10) -> 545 | G11: =SUM(G6:G10) -> 532 | H11: =SUM(H6:H10) -> 19.99 | I11: 19.81 | J11: =SUM(J6:J10) -> 67.03
A12: завтрак | B12: гор.блюдо | C12: ТТК 2023 г | D12: Жаркое из птицы (грудки куриные) | E12: 160 | G12: 262 | H12: 12.98 | I12: 10.63 | J12: 28.50
B13: гор.напиток | C13: ТТК 2023 г | D13: Напиток из замороженной черной смородины | E13: 200 | G13: 44 | H13: 0.10 | I13: 0.04 | J13: 10.71
B14: закуска | C14: ТТК 2023 г | D14: Салат - бар (морковь свежая порциями, капуста белокочанная свежая порциями, кукуруза консерв, сухарики, масло раст.) | E14: 60 | G14: 94 | H14: 1.56 | I14: 6.17 | J14: 7.78
B15: хлеб | C15: ТТК | D15: Хлебная корзина (хлеб пшен./хлеб ржано-пшен.) | E15: 40 | G15: 91 | H15: 2.52 | I15: 0.36 | J15: 18.84
B16: фрукт | C16: №532/2013 г | D16: Плоды свежие (яблоки) | E16: 50 | G16: 24 | H16: 0.2 | I16: 0.2 | J16: 4.9
A17: ИТОГО | E17: =SUM(E12:E16) -> 510 | G17: =SUM(G12:G16) -> 515 | H17: =SUM(H12:H16) -> 17.36 | I17: =SUM(I12:I16) -> 17.4 | J17: =SUM(J12:J16) -> 70.73
A18: завтраки | B18: гор.блюдо | C18: №243/2015 г | D18: Сосиски отварные | E18: 100 | G18: 125 | H18: 8.60 | I18: 4.80 | J18: 11.75
B19: гор.блюдо | C19: №303/2015 г | D19: Каша гречневая вязкая с маслом | E19: 145 | G19: 167 | H19: 3.31 | I19: 7.96 | J19: 20.60
B20: гор.напиток | C20: ТТК 2022 г | D20: Чай с сахаром, лимоном | E20: 215 | G20: 35 | H20: 0.07 | I20: 0.01 | J20: 8.21
B21: закуска | C21: ТТК 2023 г | D21: Салат - бар (свекла отварная, морковь свежая порц., зеленый горошек конс., сухарики, масло раст.) | E21: 60 | G21: 125 | H21: 2.53 | I21: 6.1 | J21: 15.07
B22: хлеб | C22: ТТК | D22: Хлебная корзина (хлеб пшен./хлеб ржано-пшен.) | E22: 40 | G22: 46 | H22: 1.25 | I22: 1.08 | J22: 9.42
A23: ИТОГО | E23: =SUM(E18:E22) -> 560 | G23: =SUM(G18:G22) -> 498 | H23: =SUM(H18:H22) -> 15.76 | I23: =SUM(I18:I22) -> 19.95 | J23: =SUM(J18:J22) -> 65.05
A24: завтраки | B24: гор.блюдо | C24: ТТК 2021 г | D24: Плов с говядиной | E24: 160 | G24: 190 | H24: 12.2 | I24: 10.6 | J24: 18.2
B25: гор. напиток | C25: ТТК 2022 г | D25: Напиток из сухофруктов | E25: 200 | G25: 151 | H25: 0.60 | I25: 0.03 | J25: 34.71
B26: хлеб | C26: ТТК | D26: Хлебная корзина (хлеб пшен./хлеб ржано-пшен.) | E26: 40 | G26: 91 | H26: 2.52 | I26: 0.36 | J26: 18.84
B27: закуска | C27: ТТК 2023 г | D27: Салат - бар (свекла отварная(тёртая), морковь свежая порциями, сыр, сухарики, масло раст.) | E27: 60 | G27: 125 | H27: 3.86 | I27: 8.74 | J27: 7.46
B28: фрукт | C28: №532/2013 г | D28: Плоды свежие (яблоки) | E28: 50 | G28: 24 | H28: 0.2 | I28: 0.2 | J28: 4.9
A29: ИТОГО | E29: =SUM(E24:E28) -> 510 | G29: =SUM(G24:G28) -> 581 | H29: =SUM(H24:H28) -> 19.38 | I29: =SUM(I24:I28) -> 19.93 | J29: =SUM(J24:J28) -> 84.11
A30: завтраки | B30: гор.блюдо | C30: ТТК 2020 г | D30: Ежики с мясом и рисом в соусе томатном | E30: 100 | G30: 119 | H30: 8.2 | I30: 5 | J30: 10.23
B31: гор.блюдо | C31: №312/2015 г | D31: Пюре картофельное | E31: 140 | G31: 136 | H31: 3.06 | I31: 4.35 | J31: 20.56
B32: напиток | C32: ТТК 2022 г | D32: Напиток из замороженной черной смородины | E32: 200 | G32: 44 | H32: 0.10 | I32: 0.04 | J32: 10.71
B33: хлеб | C33: ТТК | D33: Хлебная корзина (хлеб пшен./хлеб ржано-пшен.) | E33: 40 | G33: 91 | H33: 2.52 | I33: 0.36 | J33: 18.84
B34: закуска | C34: ТТК 2023 г | D34: Салат - бар (помидоры свежие порциями, огурцы свежие порциями, фасоль консервир., сухарики, масло раст.) | E34: 60 | G34: 90 | H34: 1.62 | I34: 6.1 | J34: 6.92
A35: ИТОГО | E35: =SUM(E30:E34) -> 540 | G35: =SUM(G30:G34) -> 480 | H35: =SUM(H30:H34) -> 15.50 | I35: =SUM(I30:I34) -> 15.85 | J35: =SUM(J30:J34) -> 67.26
A36: завтраки | B36: гор.блюдо | C36: ТТК 2020 г | D36: Пельмени "Для умников и умниц" отварные переменка | E36: 150 | G36: 301 | H36: 14 | I36: 8.5 | J36: 42
B37: гор. Напиток | C37: ТТК 2021 г | D37: Чай с сахаром, лимоном | E37: 215 | G37: 35 | H37: 0.07 | I37: 0.01 | J37: 8.21
B38: хлеб | C38: ТТК | D38: Хлебная корзина (хлеб пшен./хлеб ржано-пшен.) | E38: 40 | G38: 91 | H38: 2.52 | I38: 0.36 | J38: 18.84
B39: закуска | C39: ТТК 2023 г | D39: Салат - бар (помидоры свежие порц., огурцы свежие порц.,кукуруза консервир,, масло раст.) | E39: 60 | G39: 104 | H39: 0.63 | I39: 10.13 | J39: 2.32
B40: фрукт | C40: №532/2013 г | D40: Плоды свежие (яблоки) | E40: 50 | G40: 24 | H40: 0.2 | I40: 0.2 | J40: 4.9
A41: ИТОГО | E41: =E36+E37+E38+E39+E40 -> 515 | G41: =SUM(G36:G40) -> 555 | H41: =SUM(H36:H40) -> 17.42 | I41: =SUM(I36:I40) -> 19.20 | J41: 76.27
